[Event "CZE-ch Youth G10-G12-G14 2022"]
[Site "Luhacovice"]
[Date "2022.03.14"]
[Round "4.26"]
[White "Spetlova Stella"]
[Black "Mojzisova Barbora"]
[Result "0-1"]
[ECO "C45"]
[WhiteElo "1000"]
[BlackElo "1089"]
[Annotator "NA"]
[PlyCount "108"]
[EventDate "2022.03.12"]
[EventType "swiss"]
[EventCountry "CZE"]
[SourceTitle "playchess.com"]
[Source "ChessBase"]
[SourceQuality "1"]
[TimeControl "40/5400+30:1800+30"]

1. e4 {[%emt 0:00:07]} e5 {[%emt 0:00:10]} 2. Nf3 {[%emt 0:00:37]} Nc6 {[%emt 0:00:34]} 3. d4 {[%emt 0:00:38]} exd4 {[%emt 0:01:11]} 4. Nxd4 {[%emt 0:01:14]} Bc5 {[%emt 0:01:56]} 5. Nb3 {[%emt 0:00:57]} Bb6 {[%emt 0:01:27]} 6. Nc3 {[%emt 0:02:10]} Nge7 {[%emt 0:02:17]} 7. Bg5 {[%emt 0:02:27]} O-O {[%emt 0:02:14]} 8. Bb5 {[%emt 0:02:43]} a6 {[%emt 0:03:39]} 9. Bc4 {[%emt 0:00:24]} Qe8 {[%emt 0:08:06]} 10. O-O {[%emt 0:02:58]} Na5 {[%emt 0:02:55]} 11. Nxa5 {[%emt 0:00:46]} Bxa5 {[%emt 0:00:18]} 12. Re1 {[%emt 0:01:15]} h6 {[%emt 0:02:43]} 13. Bh4 {[%emt 0:00:52]} Ng6 {[%emt 0:03:08]} 14. Bg3 {[%emt 0:01:38]} b5 {[%emt 0:02:18]} 15. Bd3 {[%emt 0:01:08]} Ne5 {[%emt 0:05:50]} 16. Bxe5 {[%emt 0:04:19]} Qxe5 {[%emt 0:01:35]} 17. Qd2 {[%emt 0:04:30]} Bxc3 {[%emt 0:01:10]} 18. Qxc3 {[%emt 0:00:19]} Qxc3 {[%emt 0:00:09]} 19. bxc3 {[%emt 0:00:09]} Bb7 {[%emt 0:00:58]} 20. c4 {[%emt 0:00:23]} bxc4 {[%emt 0:00:24]} 21. Bxc4 {[%emt 0:00:13]} Rfe8 {[%emt 0:00:50]} 22. f3 {[%emt 0:00:16]} c6 {[%emt 0:01:13]} 23. Bd3 {[%emt 0:01:39]} d5 {[%emt 0:01:11]} 24. exd5 {[%emt 0:01:33]} Rxe1+ {[%emt 0:01:28]} 25. Rxe1 {[%emt 0:00:15]} cxd5 {[%emt 0:00:47]} 26. c4 {[%emt 0:00:47]} dxc4 {[%emt 0:00:38]} 27. Bxc4 {[%emt 0:00:19]} Kf8 {[%emt 0:01:19]} 28. Kf2 {[%emt 0:00:15]} f6 {[%emt 0:01:04]} 29. g3 {[%emt 0:00:14]} Re8 {[%emt 0:01:13]} 30. Rxe8+ {[%emt 0:00:19]} Kxe8 {[%emt 0:00:13]} 31. f4 {[%emt 0:00:19]} Kd7 {[%emt 0:00:22]} 32. Ke2 {[%emt 0:01:13]} Kd6 {[%emt 0:00:25]} 33. Ke3 {[%emt 0:00:01]} Kc5 {[%emt 0:00:39]} 34. Kd3 {[%emt 0:00:22]} a5 {[%emt 0:00:50]} 35. h3 {[%emt 0:00:23]} g5 {[%emt 0:02:06]} 36. fxg5 {[%emt 0:00:22]} fxg5 {[%emt 0:01:00]} 37. g4 {[%emt 0:00:49]} Bg2 {[%emt 0:00:36]} 38. Bf7 {[%emt 0:01:04]} Bxh3 {[%emt 0:00:43]} 39. Bh5 {[%emt 0:00:21]} Kd5 {[%emt 0:01:28]} 40. Ke3 {[%emt 0:00:22]} Ke5 {[%emt 0:01:49]} 41. Kf3 {[%emt 0:30:20]} Bf1 {[%emt 0:30:43]} 42. Ke3 {[%emt 0:00:54]} Bc4 {[%emt 0:00:48]} 43. a3 {[%emt 0:00:20]} Bg8 {[%emt 0:00:38]} 44. Ke2 {[%emt 0:00:53]} Kd4 {[%emt 0:00:33]} 45. Kd2 {[%emt 0:00:22]} Bh7 {[%emt 0:00:31]} 46. Kc1 {[%emt 0:00:28]} Kc3 {[%emt 0:00:18]} 47. Bf7 {[%emt 0:01:09]} Be4 {[%emt 0:01:05]} 48. Kd1 {[%emt 0:00:42]} Bf3+ {[%emt 0:00:16]} 49. Kc1 {[%emt 0:00:20]} Bxg4 {[%emt 0:00:12]} 50. Kb1 {[%emt 0:00:25]} h5 {[%emt 0:00:21]} 51. Bd5 {[%emt 0:00:18]} h4 {[%emt 0:00:44]} 52. Bg2 {[%emt 0:00:22]} h3 {[%emt 0:00:34]} 53. Bxh3 {[%emt 0:00:06]} Bxh3 {[%emt 0:00:26]} 54. Kc1 {[%emt 0:00:11]} Kb3 {[%emt 0:00:17]} 0-1

[Event "CZE-ch Youth G10-G12-G14 2022"]
[Site "Luhacovice"]
[Date "2022.03.14"]
[Round "4.27"]
[White "Lukaskova Ellen"]
[Black "Maresova Denisa"]
[Result "1-0"]
[ECO "C01"]
[WhiteElo "1058"]
[BlackElo "1103"]
[Annotator "NA"]
[PlyCount "53"]
[EventDate "2022.03.12"]
[EventType "swiss"]
[EventCountry "CZE"]
[SourceTitle "playchess.com"]
[Source "ChessBase"]
[SourceQuality "1"]
[TimeControl "40/5400+30:1800+30"]

1. e4 {[%emt 0:00:04]} e6 {[%emt 0:00:09]} 2. Nc3 {[%emt 0:00:39]} d5 {[%emt 0:00:25]} 3. exd5 {[%emt 0:00:44]} exd5 {[%emt 0:00:10]} 4. d4 {[%emt 0:00:32]} Nf6 {[%emt 0:00:30]} 5. Bg5 {[%emt 0:01:11]} Be7 {[%emt 0:01:50]} 6. Nf3 {[%emt 0:01:32]} O-O {[%emt 0:04:11]} 7. Bd3 {[%emt 0:04:02]} Bb4 {[%emt 0:04:30]} 8. O-O {[%emt 0:02:11]} Bxc3 {[%emt 0:02:49]} 9. bxc3 {[%emt 0:00:31]} Nc6 {[%emt 0:02:46]} 10. Ne5 {[%emt 0:03:58]} Qd6 {[%emt 0:05:24]} 11. Nxc6 {[%emt 0:02:20]} Qxc6 {[%emt 0:00:45]} 12. Qf3 {[%emt 0:02:07]} Nd7 {[%emt 0:13:19]} 13. Rfe1 {[%emt 0:05:33]} Qd6 {[%emt 0:12:21]} 14. Be7 {[%emt 0:03:13]} Qc6 {[%emt 0:07:19]} 15. Bxf8 {[%emt 0:00:37]} Kxf8 {[%emt 0:06:51]} 16. c4 {[%emt 0:02:43]} Nf6 {[%emt 0:04:42]} 17. cxd5 {[%emt 0:01:02]} Nxd5 {[%emt 0:01:28]} 18. Be4 {[%emt 0:01:33]} Be6 {[%emt 0:01:53]} 19. Bf5 {[%emt 0:04:57]} Bxf5 {[%emt 0:03:55]} 20. Qxf5 {[%emt 0:00:57]} Rd8 {[%emt 0:02:06]} 21. Qxh7 {[%emt 0:01:32]} Nf6 {[%emt 0:05:08]} 22. Qd3 {[%emt 0:01:56]} Nh5 {[%emt 0:03:06]} 23. Qe4 {[%emt 0:03:34]} Qf6 {[%emt 0:03:58]} 24. Qh7 {[%emt 0:02:11]} g6 {[%emt 0:01:39]} 25. c3 {[%emt 0:04:01]} Rd6 {[%emt 0:03:14]} 26. Qh6+ {[%emt 0:01:03]} Kg8 {[%emt 0:01:19]} 27. Re8# {[%emt 0:00:54]} 1-0

[Event "CZE-ch Youth G10-G12-G14 2022"]
[Site "Luhacovice"]
[Date "2022.03.14"]
[Round "4.28"]
[White "Kubickova Linda"]
[Black "Archlebova Iva"]
[Result "0-1"]
[ECO "C29"]
[WhiteElo "1000"]
[BlackElo "1028"]
[Annotator "NA"]
[PlyCount "42"]
[EventDate "2022.03.12"]
[EventType "swiss"]
[EventCountry "CZE"]
[SourceTitle "playchess.com"]
[Source "ChessBase"]
[SourceQuality "1"]
[TimeControl "40/5400+30:1800+30"]

1. e4 {[%emt 0:00:04]} e5 {[%emt 0:00:12]} 2. Nc3 {[%emt 0:00:13]} Nf6 {[%emt 0:00:35]} 3. f4 {[%emt 0:00:19]} Nc6 {[%emt 0:01:38]} 4. Nf3 {[%emt 0:01:10]} exf4 {[%emt 0:01:03]} 5. e5 {[%emt 0:00:53]} Ng4 {[%emt 0:00:36]} 6. h3 {[%emt 0:01:00]} Ngxe5 {[%emt 0:00:52]} 7. Nxe5 {[%emt 0:01:07]} Nxe5 {[%emt 0:00:13]} 8. d4 {[%emt 0:01:29]} Qh4+ {[%emt 0:01:37]} 9. Kd2 {[%emt 0:02:07]} Qf2+ {[%emt 0:01:06]} 10. Qe2 {[%emt 0:03:42]} Qxd4+ {[%emt 0:01:38]} 11. Ke1 {[%emt 0:00:52]} Bb4 {[%emt 0:01:03]} 12. Bd2 {[%emt 0:00:49]} O-O {[%emt 0:00:17]} 13. Nb5 {[%emt 0:01:51]} Qxb2 {[%emt 0:02:02]} 14. Qd1 {[%emt 0:01:12]} Bxd2+ {[%emt 0:00:42]} 15. Kxd2 {[%emt 0:01:13]} d6 {[%emt 0:01:05]} 16. Nxc7 {[%emt 0:02:30]} Rb8 {[%emt 0:00:50]} 17. Ke2 {[%emt 0:02:03]} Nc4 {[%emt 0:01:33]} 18. Kf3 {[%emt 0:01:18]} Be6 {[%emt 0:01:15]} 19. Bxc4 {[%emt 0:01:05]} Bxc4 {[%emt 0:01:00]} 20. Kxf4 {[%emt 0:01:21]} Qe5+ {[%emt 0:01:00]} 21. Kf3 {[%emt 0:01:10]} Rbc8 {[%emt 0:01:41]} 0-1

[Event "CZE-ch Youth G10-G12-G14 2022"]
[Site "Luhacovice"]
[Date "2022.03.14"]
[Round "4.29"]
[White "Dudkova, Josefina"]
[Black "Rybackova, Lucie"]
[Result "0-1"]
[ECO "D94"]
[WhiteElo "1545"]
[BlackElo "1612"]
[Annotator "NA"]
[PlyCount "64"]
[EventDate "2022.03.12"]
[EventType "swiss"]
[EventCountry "CZE"]
[SourceTitle "playchess.com"]
[Source "ChessBase"]
[SourceQuality "1"]
[TimeControl "40/5400+30:1800+30"]

1. e4 {[%emt 0:00:04]} c6 {[%emt 0:00:27]} 2. d4 {[%emt 0:00:38]} d5 {[%emt 0:00:35]} 3. exd5 {[%emt 0:00:20]} cxd5 {[%emt 0:00:40]} 4. c4 {[%emt 0:03:47]} Nf6 {[%emt 0:01:50]} 5. Nc3 {[%emt 0:01:35]} g6 {[%emt 0:01:59]} 6. h3 {[%emt 0:03:44]} Bg7 {[%emt 0:02:00]} 7. Nf3 {[%emt 0:00:32]} O-O {[%emt 0:03:42]} 8. Be2 {[%emt 0:03:14]} Nc6 {[%emt 0:02:22]} 9. O-O {[%emt 0:01:22]} Bf5 {[%emt 0:05:02]} 10. Bf4 {[%emt 0:03:51]} Rc8 {[%emt 0:07:09]} 11. c5 {[%emt 0:09:41]} Ne4 {[%emt 0:10:20]} 12. Rc1 {[%emt 0:05:38]} Nxc3 {[%emt 0:09:56]} 13. Rxc3 {[%emt 0:00:36]} e5 {[%emt 0:03:53]} 14. Nxe5 {[%emt 0:07:03]} Nxe5 {[%emt 0:01:41]} 15. Bxe5 {[%emt 0:01:55]} Bxe5 {[%emt 0:00:25]} 16. dxe5 {[%emt 0:00:02]} d4 {[%emt 0:00:53]} 17. Rc4 {[%emt 0:02:33]} d3 {[%emt 0:05:16]} 18. Bf3 {[%emt 0:03:07]} Qe7 {[%emt 0:02:00]} 19. Re1 {[%emt 0:09:02]} b5 {[%emt 0:02:26]} 20. Rc3 {[%emt 0:06:19]} Rxc5 {[%emt 0:02:02]} 21. Rxc5 {[%emt 0:01:59]} Qxc5 {[%emt 0:00:26]} 22. g4 {[%emt 0:01:32]} Be6 {[%emt 0:03:04]} 23. Qxd3 {[%emt 0:02:29]} Qb4 {[%emt 0:02:03]} 24. Qc3 {[%emt 0:02:41]} Qxc3 {[%emt 0:00:11]} 25. bxc3 {[%emt 0:00:02]} Rc8 {[%emt 0:00:16]} 26. Rc1 {[%emt 0:05:17]} Bxa2 {[%emt 0:00:50]} 27. Be2 {[%emt 0:04:13]} b4 {[%emt 0:00:32]} 28. c4 {[%emt 0:01:28]} b3 {[%emt 0:00:45]} 29. Bd3 {[%emt 0:04:15]} b2 {[%emt 0:00:15]} 30. Rd1 {[%emt 0:01:10]} Rb8 {[%emt 0:00:10]} 31. Bb1 {[%emt 0:00:20]} Bxb1 {[%emt 0:00:04]} 32. Rxb1 {[%emt 0:00:02]} a5 {[%emt 0:00:08]} 0-1

[Event "CZE-ch Youth G10-G12-G14 2022"]
[Site "Luhacovice"]
[Date "2022.03.14"]
[Round "4.31"]
[White "Veverkova, Dorota"]
[Black "Zadrapova, Amalie"]
[Result "0-1"]
[ECO "B23"]
[WhiteElo "1320"]
[BlackElo "1582"]
[Annotator "NA"]
[PlyCount "64"]
[EventDate "2022.03.12"]
[EventType "swiss"]
[EventCountry "CZE"]
[SourceTitle "playchess.com"]
[Source "ChessBase"]
[SourceQuality "1"]
[TimeControl "40/5400+30:1800+30"]

1. e4 {[%emt 0:00:05]} c5 {[%emt 0:00:06]} 2. Nc3 {[%emt 0:00:17]} Nc6 {[%emt 0:00:09]} 3. f4 {[%emt 0:00:14]} g6 {[%emt 0:00:14]} 4. Nf3 {[%emt 0:00:14]} Bg7 {[%emt 0:00:15]} 5. Bb5 {[%emt 0:00:36]} e6 {[%emt 0:01:45]} 6. O-O {[%emt 0:02:44]} Nge7 {[%emt 0:01:19]} 7. d3 {[%emt 0:00:59]} O-O {[%emt 0:04:40]} 8. Be3 {[%emt 0:02:10]} Nd4 {[%emt 0:03:31]} 9. Rb1 {[%emt 0:02:26]} d6 {[%emt 0:02:39]} 10. a3 {[%emt 0:02:41]} b6 {[%emt 0:04:38]} 11. g4 {[%emt 0:02:52]} f5 {[%emt 0:03:17]} 12. gxf5 {[%emt 0:03:10]} exf5 {[%emt 0:02:18]} 13. Bc4+ {[%emt 0:03:38]} Kh8 {[%emt 0:03:29]} 14. e5 {[%emt 0:01:22]} d5 {[%emt 0:23:02]} 15. Ba2 {[%emt 0:05:08]} Ne6 {[%emt 0:02:54]} 16. d4 {[%emt 0:03:00]} c4 {[%emt 0:03:11]} 17. Kh1 {[%emt 0:02:29]} Rg8 {[%emt 0:01:11]} 18. Nb5 {[%emt 0:02:39]} Bd7 {[%emt 0:02:51]} 19. Nd6 {[%emt 0:00:48]} Be8 {[%emt 0:00:15]} 20. Rg1 {[%emt 0:02:29]} Nc8 {[%emt 0:00:36]} 21. Nxc8 {[%emt 0:04:34]} Rxc8 {[%emt 0:00:19]} 22. c3 {[%emt 0:01:05]} Bh6 {[%emt 0:01:47]} 23. Ng5 {[%emt 0:01:50]} Bxg5 {[%emt 0:01:15]} 24. fxg5 {[%emt 0:00:29]} Rc7 {[%emt 0:03:45]} 25. Qf3 {[%emt 0:01:23]} Rf7 {[%emt 0:01:35]} 26. b3 {[%emt 0:01:04]} b5 {[%emt 0:01:54]} 27. Bf2 {[%emt 0:04:12]} Bc6 {[%emt 0:05:17]} 28. Rg3 {[%emt 0:01:18]} Nxg5 {[%emt 0:04:48]} 29. Qf4 {[%emt 0:02:29]} Ne4 {[%emt 0:01:04]} 30. Rh3 {[%emt 0:00:38]} g5 {[%emt 0:01:08]} 31. Qe3 {[%emt 0:01:01]} f4 {[%emt 0:00:53]} 32. Qe2 {[%emt 0:01:16]} Bd7 {[%emt 0:00:36]} 0-1

[Event "CZE-ch Youth G10-G12-G14 2022"]
[Site "Luhacovice"]
[Date "2022.03.14"]
[Round "4.32"]
[White "Reznickova, Sibyla"]
[Black "Mikesova, Lenka"]
[Result "0-1"]
[ECO "D07"]
[WhiteElo "1304"]
[BlackElo "1364"]
[Annotator "NA"]
[PlyCount "74"]
[EventDate "2022.03.12"]
[EventType "swiss"]
[EventCountry "CZE"]
[SourceTitle "playchess.com"]
[Source "ChessBase"]
[SourceQuality "1"]
[TimeControl "40/5400+30:1800+30"]

1. d4 {[%emt 0:00:16]} d5 {[%emt 0:00:12]} 2. c4 {[%emt 0:00:29]} Nc6 {[%emt 0:00:26]} 3. Nf3 {[%emt 0:01:45]} Bg4 {[%emt 0:01:14]} 4. Nc3 {[%emt 0:01:08]} Nf6 {[%emt 0:05:31]} 5. Bg5 {[%emt 0:02:09]} e6 {[%emt 0:06:12]} 6. e3 {[%emt 0:01:39]} Bb4 {[%emt 0:02:26]} 7. Bd3 {[%emt 0:04:08]} O-O {[%emt 0:02:20]} 8. O-O {[%emt 0:00:44]} h6 {[%emt 0:00:56]} 9. Bh4 {[%emt 0:01:44]} Bxc3 {[%emt 0:09:30]} 10. bxc3 {[%emt 0:01:14]} e5 {[%emt 0:05:39]} 11. h3 {[%emt 0:08:38]} Bxf3 {[%emt 0:02:02]} 12. gxf3 {[%emt 0:06:28]} Qd6 {[%emt 0:03:14]} 13. c5 {[%emt 0:02:03]} Qe6 {[%emt 0:00:26]} 14. Kh2 {[%emt 0:01:28]} Nh7 {[%emt 0:03:07]} 15. Rg1 {[%emt 0:03:22]} g5 {[%emt 0:03:21]} 16. Qc2 {[%emt 0:02:34]} f5 {[%emt 0:02:25]} 17. e4 {[%emt 0:01:54]} dxe4 {[%emt 0:02:14]} 18. fxe4 {[%emt 0:00:29]} exd4 {[%emt 0:03:33]} 19. cxd4 {[%emt 0:20:04]} Nxd4 {[%emt 0:08:15]} 20. Qc3 {[%emt 0:01:52]} Qe5+ {[%emt 0:01:40]} 21. Kh1 {[%emt 0:08:39]} Kh8 {[%emt 0:06:22]} 22. f4 {[%emt 0:02:42]} gxf4 {[%emt 0:03:12]} 23. exf5 {[%emt 0:05:56]} Qe3 {[%emt 0:03:02]} 24. Kh2 {[%emt 0:02:48]} Nf6 {[%emt 0:02:40]} 25. Bxf6+ {[%emt 0:08:00]} Rxf6 {[%emt 0:00:49]} 26. Raf1 {[%emt 0:01:38]} Raf8 {[%emt 0:03:47]} 27. Rg6 {[%emt 0:06:11]} Rxg6 {[%emt 0:02:36]} 28. fxg6 {[%emt 0:00:09]} Qg3+ {[%emt 0:00:20]} 29. Kh1 {[%emt 0:00:19]} Qxh3+ {[%emt 0:00:47]} 30. Kg1 {[%emt 0:00:39]} Qe3+ {[%emt 0:00:32]} 31. Kh1 {[%emt 0:00:43]} Rf6 {[%emt 0:01:12]} 32. Qc4 {[%emt 0:00:55]} Qh3+ {[%emt 0:02:13]} 33. Kg1 {[%emt 0:00:22]} Qg3+ {[%emt 0:06:07]} 34. Kh1 {[%emt 0:01:04]} f3 {[%emt 0:01:45]} 35. g7+ {[%emt 0:00:39]} Qxg7 {[%emt 0:00:23]} 36. Rg1 {[%emt 0:00:22]} Qf7 {[%emt 0:02:22]} 37. Qxd4 {[%emt 0:00:24]} Qh5+ {[%emt 0:00:32]} 0-1

[Event "CZE-ch Youth G10-G12-G14 2022"]
[Site "Luhacovice"]
[Date "2022.03.14"]
[Round "4.33"]
[White "Vacekova Anita"]
[Black "Barteckova, Denisa"]
[Result "0-1"]
[ECO "C02"]
[WhiteElo "1000"]
[BlackElo "1323"]
[Annotator "NA"]
[PlyCount "122"]
[EventDate "2022.03.12"]
[EventType "swiss"]
[EventCountry "CZE"]
[SourceTitle "playchess.com"]
[Source "ChessBase"]
[SourceQuality "1"]
[TimeControl "40/5400+30:1800+30"]

1. e4 {[%emt 0:00:04]} e6 {[%emt 0:00:00]} 2. d4 {[%emt 0:00:12]} d5 {[%emt 0:02:40]} 3. e5 {[%emt 0:13:06]} c5 {[%emt 0:00:30]} 4. c3 {[%emt 0:00:30]} Nc6 {[%emt 0:00:30]} 5. Nf3 {[%emt 0:00:30]} Qb6 {[%emt 0:00:30]} 6. Bd3 {[%emt 0:00:30]} Bd7 {[%emt 0:00:30]} 7. Qb3 {[%emt 0:00:30]} c4 {[%emt 0:00:30]} 8. Qxb6 {[%emt 0:00:30]} axb6 {[%emt 0:00:30]} 9. Bc2 {[%emt 0:00:30]} b5 {[%emt 0:00:30]} 10. O-O {[%emt 0:00:30]} b4 {[%emt 0:00:30]} 11. b3 {[%emt 0:00:30]} b5 {[%emt 0:00:30]} 12. Bb2 {[%emt 0:00:30]} bxc3 {[%emt 0:00:30]} 13. Nxc3 {[%emt 0:02:47]} Nb4 {[%emt 0:02:06]} 14. Bd1 {[%emt 0:03:05]} Nd3 {[%emt 0:00:33]} 15. Bc1 {[%emt 0:01:12]} b4 {[%emt 0:00:34]} 16. Na4 {[%emt 0:00:44]} Bb5 {[%emt 0:05:32]} 17. Bc2 {[%emt 0:05:35]} c3 {[%emt 0:04:08]} 18. Rd1 {[%emt 0:02:58]} Nxc1 {[%emt 0:03:21]} 19. Rdxc1 {[%emt 0:00:48]} Ne7 {[%emt 0:01:26]} 20. Nc5 {[%emt 0:11:16]} Nc6 {[%emt 0:01:01]} 21. Bd3 {[%emt 0:02:01]} Bxd3 {[%emt 0:00:46]} 22. Nxd3 {[%emt 0:00:18]} Be7 {[%emt 0:00:38]} 23. a3 {[%emt 0:04:06]} Rxa3 {[%emt 0:01:57]} 24. Rxa3 {[%emt 0:00:24]} bxa3 {[%emt 0:00:05]} 25. Rxc3 {[%emt 0:01:04]} a2 {[%emt 0:00:23]} 26. Rc1 {[%emt 0:00:09]} O-O {[%emt 0:00:17]} 27. Ra1 {[%emt 0:00:15]} Ra8 {[%emt 0:00:36]} 28. Nc1 {[%emt 0:01:38]} Nb4 {[%emt 0:00:05]} 29. Ne1 {[%emt 0:06:54]} Ra3 {[%emt 0:04:12]} 30. g3 {[%emt 0:03:46]} Kf8 {[%emt 0:01:40]} 31. Kf1 {[%emt 0:01:41]} Bd8 {[%emt 0:00:53]} 32. Ke2 {[%emt 0:02:53]} Bb6 {[%emt 0:02:06]} 33. Ke3 {[%emt 0:01:28]} f6 {[%emt 0:00:39]} 34. f4 {[%emt 0:00:40]} Ke7 {[%emt 0:00:26]} 35. h3 {[%emt 0:06:06]} h6 {[%emt 0:00:32]} 36. h4 {[%emt 0:00:12]} h5 {[%emt 0:00:22]} 37. Nxa2 {[%emt 0:03:21]} Nxa2 {[%emt 0:01:25]} 38. Nd3 {[%emt 0:00:46]} Ra5 {[%emt 0:02:06]} 39. Rg1 {[%emt 0:02:09]} f5 {[%emt 0:00:51]} 40. b4 {[%emt 0:00:45]} Ra7 {[%emt 0:01:01]} 41. Ra1 {[%emt 0:30:47]} Ra6 {[%emt 0:32:34]} 42. Nc5 {[%emt 0:01:56]} Ra3+ {[%emt 0:01:09]} 43. Kf2 {[%emt 0:01:30]} Bxc5 {[%emt 0:01:46]} 44. dxc5 {[%emt 0:00:37]} Kd7 {[%emt 0:00:10]} 45. b5 {[%emt 0:00:44]} Ra4 {[%emt 0:01:00]} 46. Ke1 {[%emt 0:02:30]} Nc3 {[%emt 0:01:11]} 47. Rxa4 {[%emt 0:00:58]} Nxa4 {[%emt 0:00:11]} 48. c6+ {[%emt 0:03:34]} Kc7 {[%emt 0:00:09]} 49. Kd2 {[%emt 0:00:51]} Kb6 {[%emt 0:00:13]} 50. Kc2 {[%emt 0:00:46]} Kxb5 {[%emt 0:00:17]} 51. c7 {[%emt 0:00:28]} Nb6 {[%emt 0:00:07]} 52. Kc3 {[%emt 0:00:28]} Kc6 {[%emt 0:00:11]} 53. Kb4 {[%emt 0:00:18]} Kxc7 {[%emt 0:00:11]} 54. Kc5 {[%emt 0:00:08]} Na4+ {[%emt 0:00:12]} 55. Kb4 {[%emt 0:00:13]} Nb2 {[%emt 0:00:24]} 56. Kc3 {[%emt 0:00:16]} Nd1+ {[%emt 0:00:14]} 57. Kd3 {[%emt 0:00:18]} Nf2+ {[%emt 0:00:13]} 58. Ke3 {[%emt 0:00:11]} Ne4 {[%emt 0:00:15]} 59. Kf3 {[%emt 0:00:19]} Kc6 {[%emt 0:00:31]} 60. Kg2 {[%emt 0:00:31]} Kc5 {[%emt 0:00:31]} 61. Kf3 {[%emt 0:00:33]} Kc4 {[%emt 0:01:04]} 0-1

[Event "CZE-ch Youth G10-G12-G14 2022"]
[Site "Luhacovice"]
[Date "2022.03.14"]
[Round "4.34"]
[White "Janouskova, Adela"]
[Black "Brezikova, Beata"]
[Result "1-0"]
[ECO "C44"]
[WhiteElo "1585"]
[BlackElo "1266"]
[Annotator "NA"]
[PlyCount "27"]
[EventDate "2022.03.12"]
[EventType "swiss"]
[EventCountry "CZE"]
[SourceTitle "playchess.com"]
[Source "ChessBase"]
[SourceQuality "1"]
[TimeControl "40/5400+30:1800+30"]

1. e4 {[%emt 0:00:04]} e5 {[%emt 0:00:05]} 2. Nf3 {[%emt 0:00:23]} Nc6 {[%emt 0:00:05]} 3. d4 {[%emt 0:00:55]} exd4 {[%emt 0:00:06]} 4. c3 {[%emt 0:00:31]} dxc3 {[%emt 0:02:52]} 5. Nxc3 {[%emt 0:00:24]} Bb4 {[%emt 0:02:07]} 6. Bc4 {[%emt 0:01:43]} Nge7 {[%emt 0:02:28]} 7. O-O {[%emt 0:14:14]} d6 {[%emt 0:08:48]} 8. Ng5 {[%emt 0:06:40]} O-O {[%emt 0:03:06]} 9. Qh5 {[%emt 0:03:24]} h6 {[%emt 0:11:58]} 10. Nxf7 {[%emt 0:02:05]} Rxf7 {[%emt 0:00:36]} 11. Bxf7+ {[%emt 0:02:43]} Kf8 {[%emt 0:03:56]} 12. Bb3 {[%emt 0:02:23]} Ne5 {[%emt 0:05:41]} 13. f4 {[%emt 0:03:18]} N5g6 {[%emt 0:00:39]} 14. f5 {[%emt 0:01:27]} 1-0

[Event "CZE-ch Youth G10-G12-G14 2022"]
[Site "Luhacovice"]
[Date "2022.03.14"]
[Round "4.35"]
[White "Sikorova, Jana"]
[Black "Archlebova, Stela"]
[Result "1-0"]
[ECO "D15"]
[WhiteElo "1427"]
[BlackElo "1121"]
[Annotator "NA"]
[PlyCount "43"]
[EventDate "2022.03.12"]
[EventType "swiss"]
[EventCountry "CZE"]
[SourceTitle "playchess.com"]
[Source "ChessBase"]
[SourceQuality "1"]
[TimeControl "40/5400+30:1800+30"]

1. d4 {[%emt 0:00:04]} d5 {[%emt 0:00:07]} 2. c4 {[%emt 0:00:05]} c6 {[%emt 0:00:23]} 3. Nc3 {[%emt 0:00:46]} Nf6 {[%emt 0:00:17]} 4. Nf3 {[%emt 0:00:47]} Bf5 {[%emt 0:05:22]} 5. Qb3 {[%emt 0:01:22]} Qb6 {[%emt 0:12:56]} 6. c5 {[%emt 0:05:00]} Qd8 {[%emt 0:07:09]} 7. Qxb7 {[%emt 0:01:16]} Nbd7 {[%emt 0:04:13]} 8. Qxc6 {[%emt 0:01:10]} e6 {[%emt 0:00:49]} 9. Bf4 {[%emt 0:02:22]} Rc8 {[%emt 0:03:46]} 10. Qa4 {[%emt 0:01:50]} Ra8 {[%emt 0:11:41]} 11. e3 {[%emt 0:00:41]} Be7 {[%emt 0:00:21]} 12. Bb5 {[%emt 0:00:36]} O-O {[%emt 0:00:18]} 13. Bc6 {[%emt 0:00:17]} Rc8 {[%emt 0:01:21]} 14. Bb7 {[%emt 0:01:36]} Rb8 {[%emt 0:00:54]} 15. c6 {[%emt 0:06:18]} Nb6 {[%emt 0:03:03]} 16. Qxa7 {[%emt 0:00:44]} Bd6 {[%emt 0:01:57]} 17. Bxd6 {[%emt 0:01:33]} Qxd6 {[%emt 0:00:23]} 18. Qxb6 {[%emt 0:00:15]} Nd7 {[%emt 0:06:39]} 19. Qb3 {[%emt 0:02:41]} Nf6 {[%emt 0:01:56]} 20. Nb5 {[%emt 0:01:20]} Qe7 {[%emt 0:01:44]} 21. Rc1 {[%emt 0:03:48]} e5 {[%emt 0:08:57]} 22. Nxe5 {[%emt 0:03:46]} 1-0

[Event "CZE-ch Youth G10-G12-G14 2022"]
[Site "Luhacovice"]
[Date "2022.03.14"]
[Round "4.36"]
[White "Kaplanova, Dominika"]
[Black "Stavova, Marketa"]
[Result "0-1"]
[ECO "C45"]
[WhiteElo "1269"]
[BlackElo "1146"]
[Annotator "NA"]
[PlyCount "76"]
[EventDate "2022.03.12"]
[EventType "swiss"]
[EventCountry "CZE"]
[SourceTitle "playchess.com"]
[Source "ChessBase"]
[SourceQuality "1"]
[TimeControl "40/5400+30:1800+30"]

1. e4 {[%emt 0:00:23]} e5 {[%emt 0:00:28]} 2. Nf3 {[%emt 0:00:05]} Nc6 {[%emt 0:00:09]} 3. d4 {[%emt 0:00:05]} exd4 {[%emt 0:00:12]} 4. Nxd4 {[%emt 0:00:06]} Bc5 {[%emt 0:00:31]} 5. Nb3 {[%emt 0:00:08]} Bb6 {[%emt 0:00:29]} 6. Nc3 {[%emt 0:00:09]} Nf6 {[%emt 0:00:52]} 7. Bg5 {[%emt 0:00:36]} d6 {[%emt 0:02:02]} 8. Qe2 {[%emt 0:03:00]} h6 {[%emt 0:01:09]} 9. Bh4 {[%emt 0:00:17]} g5 {[%emt 0:02:02]} 10. Bg3 {[%emt 0:01:08]} Be6 {[%emt 0:03:05]} 11. O-O-O {[%emt 0:01:37]} Qe7 {[%emt 0:04:48]} 12. h4 {[%emt 0:04:15]} O-O-O {[%emt 0:01:18]} 13. hxg5 {[%emt 0:03:12]} hxg5 {[%emt 0:00:19]} 14. Rxh8 {[%emt 0:00:10]} Rxh8 {[%emt 0:00:07]} 15. Qd2 {[%emt 0:02:14]} Ng4 {[%emt 0:04:38]} 16. Kb1 {[%emt 0:05:33]} f6 {[%emt 0:03:23]} 17. f3 {[%emt 0:05:14]} Nge5 {[%emt 0:02:25]} 18. Nd5 {[%emt 0:11:52]} Qf7 {[%emt 0:03:43]} 19. Nxb6+ {[%emt 0:01:56]} axb6 {[%emt 0:00:18]} 20. Bxe5 {[%emt 0:03:16]} dxe5 {[%emt 0:00:53]} 21. Bb5 {[%emt 0:03:51]} Rd8 {[%emt 0:07:40]} 22. Qe2 {[%emt 0:02:41]} Rxd1+ {[%emt 0:03:07]} 23. Qxd1 {[%emt 0:02:41]} Qh7 {[%emt 0:01:16]} 24. Qf1 {[%emt 0:08:27]} Qh2 {[%emt 0:02:48]} 25. Bxc6 {[%emt 0:04:07]} bxc6 {[%emt 0:00:10]} 26. c3 {[%emt 0:02:39]} Kb7 {[%emt 0:04:07]} 27. c4 {[%emt 0:03:31]} Qf4 {[%emt 0:02:29]} 28. Qe2 {[%emt 0:02:26]} f5 {[%emt 0:01:10]} 29. Nd2 {[%emt 0:02:41]} g4 {[%emt 0:03:14]} 30. exf5 {[%emt 0:05:20]} Bxf5+ {[%emt 0:00:41]} 31. Kc1 {[%emt 0:00:13]} gxf3 {[%emt 0:01:54]} 32. Qxf3 {[%emt 0:02:04]} Qg5 {[%emt 0:00:29]} 33. Qe2 {[%emt 0:02:25]} Bg6 {[%emt 0:05:58]} 34. b3 {[%emt 0:02:46]} Qf5 {[%emt 0:04:29]} 35. Kb2 {[%emt 0:04:04]} Qc2+ {[%emt 0:01:48]} 36. Ka3 {[%emt 0:01:51]} Qc1+ {[%emt 0:00:09]} 37. Ka4 {[%emt 0:00:26]} Qb2 {[%emt 0:00:46]} 38. a3 {[%emt 0:02:23]} Qc3 {[%emt 0:02:11]} 0-1